fUSD/lending_fUSD_20250219
["ID","MTS","AMOUNT","RATE_DAILY","PERIOD"]
[353726270,1739998259892,-500.0,0.00012063,2]
[353726272,1739998259902,-190.75,0.00012063,2]
[353726274,1739998259911,-242.89,0.00012063,2]
[353726275,1739998259923,-1087.54,0.00012063,2]
[353726277,1739998259932,-500.0,0.00012063,2]
[353726279,1739998259942,-527.92,0.00012063,2]
[353726281,1739998259952,-670.45,0.00012063,2]
[353726283,1739998259963,-500.0,0.00012063,2]
[353726286,1739998259973,-500.0,0.00012063,2]
[353726288,1739998259983,-500.95,0.00012063,2]
[353726289,1739998259993,-500.0,0.00012063,2]
[353726291,1739998260002,-500.0,0.00012063,2]
[353726294,1739998260012,-500.0,0.00012063,2]
[353726295,1739998260022,-500.0,0.00012063,2]
[353726297,1739998260032,-500.0,0.00012063,2]
[353726299,1739998260041,-500.0,0.00012063,2]
[353726301,1739998260052,-243.42,0.00012063,2]
[353726303,1739998260062,-535.89,0.00012063,2]
[353726305,1739998260071,-500.0,0.00012063,2]
[353726307,1739998260081,-500.0,0.00012063,2]
[353726309,1739998260090,-500.0,0.00012063,2]
[353726311,1739998260100,-533.91,0.00012063,2]
[353726313,1739998260109,-555.64,0.00012063,2]
[353726315,1739998260118,-500.0,0.00012063,2]
[353726317,1739998260128,-500.0,0.00012063,2]
[353726319,1739998260138,-602.23,0.00012063,2]
[353726321,1739998260147,-533.38,0.00012063,2]
[353726323,1739998260156,-500.0,0.00012063,2]
[353726325,1739998260165,-500.0,0.00012063,2]
[353726327,1739998260174,-500.0,0.00012063,2]
[353726329,1739998260184,-500.0,0.00012063,2]
[353726331,1739998260193,-500.0,0.00012063,2]
[353726333,1739998260203,-500.0,0.00012063,2]
[353726335,1739998260213,-619.13,0.00012063,2]
[353726337,1739998260222,-500.0,0.00012063,2]
[353726339,1739998260232,-500.0,0.00012063,2]
[353726341,1739998260242,-532.92,0.00012063,2]
[353726343,1739998260251,-500.0,0.00012063,2]
[353726345,1739998260262,-701.2,0.00012063,2]
[353726347,1739998260271,-500.0,0.00012063,2]
[353726349,1739998260282,-948.34,0.00012063,2]
[353726351,1739998260292,-581.46,0.00012063,2]
[353726353,1739998260301,-500.0,0.00012063,2]
[353726355,1739998260311,-500.0,0.00012063,2]
[353726357,1739998260321,-500.0,0.00012064,2]
[353726359,1739998260330,-500.0,0.00012064,2]
[353726361,1739998260339,-500.0,0.00012064,2]
[353726363,1739998260348,-500.0,0.00012064,2]
[353726365,1739998260357,-500.0,0.00012064,2]
[353726367,1739998260368,-500.0,0.00012064,2]
[353726369,1739998260377,-500.0,0.00012064,2]
[353726371,1739998260387,-500.0,0.00012064,2]
[353726372,1739998260396,-500.0,0.00012064,2]
[353726373,1739998260405,-500.0,0.00012064,2]
[353726374,1739998260415,-500.0,0.00012064,2]
[353726375,1739998260424,-500.0,0.00012064,2]
[353726376,1739998260433,-1239.95,0.00012064,2]
[353726377,1739998260442,-500.0,0.00012064,2]
[353726378,1739998260453,-500.0,0.00012064,2]
[353726380,1739998260462,-500.0,0.00012064,2]
[353726382,1739998260472,-500.0,0.00012064,2]
[353726384,1739998260481,-500.0,0.00012064,2]
[353726386,1739998260491,-500.0,0.00012064,2]
[353726388,1739998260501,-262.38,0.00012146,2]
[353726390,1739998260510,-500.0,0.00012146,2]
[353726392,1739998260519,-500.0,0.00012146,2]
[353726394,1739998260528,-500.0,0.00012146,2]
[353726396,1739998260537,-294.98,0.00012146,2]
[353726398,1739998260546,-500.0,0.00012146,2]
[353726400,1739998260556,-500.0,0.00012146,2]
[353726402,1739998260565,-500.0,0.00012146,2]
[353726404,1739998260575,-1087.54,0.00012146,2]
[353726406,1739998260585,-500.0,0.00012146,2]
[353726408,1739998260598,-527.92,0.00012146,2]
[353726410,1739998260608,-670.45,0.00012146,2]
[353726412,1739998260619,-500.0,0.00012146,2]
[353726414,1739998260630,-500.0,0.00012146,2]
[353726416,1739998260640,-500.95,0.00012146,2]
[353726418,1739998260649,-500.0,0.00012146,2]
[353726420,1739998260659,-500.0,0.00012146,2]
[353726422,1739998260668,-227.1,0.00012146,2]
[353726424,1739998260678,-500.0,0.00012146,2]
[353726426,1739998260687,-500.0,0.00012146,2]
[353726428,1739998260701,-500.0,0.00012146,2]
[353726431,1739998260711,-535.89,0.00012146,2]
[353726433,1739998260720,-500.0,0.00012146,2]
[353726435,1739998260731,-533.91,0.00012146,2]
[353726437,1739998260740,-555.64,0.00012146,2]
[353726438,1739998260750,-643.35,0.00012146,2]
[353726440,1739998260760,-500.0,0.00012146,2]
[353726442,1739998260770,-602.23,0.00012146,2]
[353726444,1739998260780,-533.38,0.00012146,2]
[353726446,1739998260790,-500.0,0.00012146,2]
[353726448,1739998260799,-500.0,0.00012146,2]
[353726450,1739998260808,-500.0,0.00012146,2]
[353726452,1739998260818,-500.0,0.00012146,2]
[353726454,1739998260827,-500.0,0.00012146,2]
[353726456,1739998260837,-500.0,0.00012146,2]
[353726458,1739998260847,-619.13,0.00012146,2]
[353726460,1739998260856,-500.0,0.00012146,2]
[353726462,1739998260865,-500.0,0.00012146,2]
[353726464,1739998260874,-532.92,0.00012146,2]
[353726466,1739998260887,-500.0,0.00012146,2]
[353726468,1739998260897,-701.2,0.00012146,2]
[353726470,1739998260906,-500.0,0.00012146,2]
[353726472,1739998260916,-948.34,0.00012146,2]
[353726474,1739998260927,-500.0,0.00012146,2]
[353726476,1739998260937,-500.0,0.00012146,2]
[353726478,1739998260949,-500.0,0.00012147,2]
[353726480,1739998260960,-500.0,0.00012147,2]
[353726482,1739998260972,-500.0,0.00012147,2]
[353726484,1739998260982,-500.0,0.00012147,2]
[353726486,1739998260992,-301.57,0.00012147,2]
[353726488,1739998261003,-500.0,0.00012147,2]
[353726490,1739998261013,-500.0,0.00012147,2]
[353726492,1739998261025,-500.0,0.00012147,2]
[353726494,1739998261035,-500.0,0.00012147,2]
[353726496,1739998261044,-500.0,0.00012147,2]
[353726498,1739998261055,-500.0,0.00012147,2]
[353726500,1739998261064,-500.0,0.00012147,2]
[353726502,1739998261074,-1239.95,0.00012147,2]
[353726504,1739998261084,-500.0,0.00012147,2]
[353726506,1739998261093,-500.0,0.00012147,2]
[353726508,1739998261103,-634.55813659,0.00012147,2]
[353726510,1739998261113,-366.69906878,0.00012148,2]
[353726512,1739998261122,-673.38230493,0.00012188,2]
[353726514,1739998261132,-500.0,0.00012228,2]
[353726516,1739998261142,-500.0,0.00012228,2]
[353726518,1739998261152,-500.0,0.00012228,2]
[353726520,1739998261162,-500.0,0.00012228,2]
[353726522,1739998261171,-500.0,0.00012228,2]
[353726524,1739998261181,-500.0,0.00012228,2]
[353726526,1739998261190,-1087.54,0.00012228,2]
[353726528,1739998261201,-292.28,0.00012228,2]
[353726530,1739998261211,-527.92,0.00012228,2]
[353726532,1739998261220,-670.45,0.00012228,2]
[353726534,1739998261229,-500.0,0.00012228,2]
[353726536,1739998261239,-500.0,0.00012228,2]
[353726538,1739998261248,-500.95,0.00012228,2]
[353726540,1739998261257,-589.72,0.00012228,2]
[353726542,1739998261267,-500.0,0.00012228,2]
[353726544,1739998261276,-432.04,0.00012228,2]
[353726546,1739998261286,-500.0,0.00012228,2]
[353726548,1739998261295,-548.32,0.00012228,2]
[353726550,1739998261304,-535.89,0.00012228,2]
[353726552,1739998261315,-500.0,0.00012228,2]
[353726554,1739998261324,-533.91,0.00012228,2]
[353726556,1739998261333,-555.64,0.00012228,2]
[353726557,1739998261344,-500.0,0.00012228,2]
[353726559,1739998261353,-602.23,0.00012228,2]
[353726561,1739998261362,-533.38,0.00012228,2]
[353726563,1739998261372,-500.0,0.00012228,2]
[353726565,1739998261381,-500.0,0.00012228,2]
[353726567,1739998261390,-500.0,0.00012228,2]
[353726569,1739998261399,-500.0,0.00012228,2]
[353726571,1739998261408,-619.13,0.00012228,2]
[353726573,1739998261417,-500.0,0.00012228,2]
[353726575,1739998261426,-500.0,0.00012228,2]
[353726577,1739998261435,-532.92,0.00012228,2]
[353726579,1739998261444,-500.0,0.00012228,2]
[353726581,1739998261454,-701.2,0.00012228,2]
[353726583,1739998261464,-500.0,0.00012228,2]
[353726585,1739998261473,-948.34,0.00012228,2]
[353726586,1739998261482,-500.0,0.00012228,2]
[353726587,1739998261491,-500.0,0.00012228,2]
[353726588,1739998261500,-500.0,0.00012229,2]
[353726589,1739998261509,-500.0,0.00012229,2]
[353726590,1739998261518,-500.0,0.00012229,2]
[353726591,1739998261527,-481.17,0.00012229,2]
[353726593,1739998261536,-500.0,0.00012229,2]
[353726595,1739998261545,-500.0,0.00012229,2]
[353726597,1739998261554,-500.0,0.00012229,2]
[353726599,1739998261563,-500.0,0.00012229,2]
[353726601,1739998261572,-199.94,0.00012229,2]
[353726603,1739998261581,-500.0,0.00012229,2]
[353726605,1739998261590,-500.0,0.00012229,2]
[353726607,1739998261600,-1239.95,0.00012229,2]
[353726609,1739998261609,-359.04,0.00012229,2]
[353726611,1739998261619,-500.0,0.00012229,2]
[353726613,1739998261629,-1060.0,0.00012236,2]
[353726614,1739998261637,-500.0,0.0001231,2]
[353726616,1739998261647,-346.34,0.0001231,2]
[353726618,1739998261657,-500.0,0.0001231,2]
[353726620,1739998261666,-438.11,0.0001231,2]
[353726622,1739998261675,-500.0,0.0001231,2]
[353726624,1739998261685,-500.0,0.0001231,2]
[353726626,1739998261695,-1087.54,0.0001231,2]
[353726628,1739998261704,-527.92,0.0001231,2]
[353726630,1739998261714,-670.45,0.0001231,2]
[353726632,1739998261724,-167.93,0.0001231,2]
[353726634,1739998261733,-500.0,0.0001231,2]
[353726636,1739998261743,-500.95,0.0001231,2]
[353726638,1739998261752,-500.0,0.0001231,2]
[353726640,1739998261761,-500.0,0.0001231,2]
[353726642,1739998261770,-535.89,0.0001231,2]
[353726644,1739998261780,-500.0,0.0001231,2]
[353726646,1739998261789,-533.91,0.0001231,2]
[353726648,1739998261799,-555.64,0.0001231,2]
[353726650,1739998261808,-500.0,0.0001231,2]
[353726652,1739998261817,-602.23,0.0001231,2]
[353726654,1739998261826,-533.38,0.0001231,2]
[353726656,1739998261836,-500.0,0.0001231,2]
[353726658,1739998261845,-500.0,0.0001231,2]
[353726660,1739998261854,-500.0,0.0001231,2]
[353726662,1739998261865,-500.0,0.0001231,2]
[353726664,1739998261875,-619.13,0.0001231,2]
[353726666,1739998261889,-500.0,0.0001231,2]
[353726668,1739998261898,-500.0,0.0001231,2]
[353726670,1739998261908,-532.92,0.0001231,2]
[353726672,1739998261917,-500.0,0.0001231,2]
[353726674,1739998261929,-701.2,0.0001231,2]
[353726676,1739998261939,-500.0,0.0001231,2]
[353726678,1739998261949,-948.34,0.0001231,2]
[353726680,1739998261959,-500.0,0.0001231,2]
[353726682,1739998261968,-500.0,0.00012311,2]
[353726699,1739998262126,-500.0,0.00012311,2]
[353726701,1739998262136,-500.0,0.00012311,2]
[353726703,1739998262146,-500.0,0.00012311,2]
[353726705,1739998262155,-500.0,0.00012311,2]
[353726707,1739998262164,-500.0,0.00012311,2]
[353726709,1739998262174,-229.5553805,0.00012311,2]
[353726711,1739998262183,-500.0,0.00012311,2]
[353726713,1739998262192,-500.0,0.00012311,2]
[353726715,1739998262202,-1239.95,0.00012311,2]
[353726717,1739998262211,-500.0,0.00012311,2]
[353726719,1739998262221,-295.16980306,0.00012329,2]
[353726721,1739998262231,-153.78535812,0.00012329,2]
[353726723,1739998262240,-219.32950524,0.00012329,2]
[353726725,1739998262251,-500.0,0.00012392,2]
[353726727,1739998262260,-625.42,0.00012392,2]
[353726729,1739998262269,-500.0,0.00012392,2]
[353726731,1739998262279,-500.0,0.00012392,2]
[353726733,1739998262288,-1087.54,0.00012392,2]
[353726735,1739998262298,-527.92,0.00012392,2]
[353726737,1739998262307,-670.45,0.00012392,2]
[353726740,1739998262317,-500.0,0.00012392,2]
[353726742,1739998262326,-500.95,0.00012392,2]
[353726744,1739998262335,-500.0,0.00012392,2]
[353726746,1739998262345,-500.0,0.00012392,2]
[353726747,1739998262354,-535.89,0.00012392,2]
[353726749,1739998262364,-500.0,0.00012392,2]
[353726751,1739998262375,-533.91,0.00012392,2]
[353726753,1739998262384,-555.64,0.00012392,2]
[353726755,1739998262394,-298.31,0.00012392,2]
[353726757,1739998262404,-602.23,0.00012392,2]
[353726759,1739998262413,-533.38,0.00012392,2]
[353726762,1739998262423,-500.0,0.00012392,2]
[353726763,1739998262432,-500.0,0.00012392,2]
[353726766,1739998262442,-500.0,0.00012392,2]
[353726767,1739998262451,-500.0,0.00012392,2]
[353726769,1739998262461,-619.13,0.00012392,2]
[353726772,1739998262470,-500.0,0.00012392,2]
[353726773,1739998262479,-500.0,0.00012392,2]
[353726775,1739998262489,-532.92,0.00012392,2]
[353726777,1739998262498,-701.2,0.00012392,2]
[353726780,1739998262508,-500.0,0.00012392,2]
[353726782,1739998262518,-948.34,0.00012392,2]
[353726784,1739998262527,-500.0,0.00012392,2]
[353726785,1739998262536,-500.0,0.00012393,2]
[353726787,1739998262545,-500.0,0.00012393,2]
[353726789,1739998262554,-500.0,0.00012393,2]
[353726792,1739998262564,-500.0,0.00012393,2]
[353726793,1739998262573,-500.0,0.00012393,2]
[353726795,1739998262583,-500.0,0.00012393,2]
[353726797,1739998262592,-401.8,0.00012393,2]
[353726800,1739998262602,-500.0,0.00012393,2]
[353726802,1739998262611,-1239.95,0.00012393,2]
[353726803,1739998262621,-604.18,0.00012393,2]
[353726805,1739998262631,-153.0,0.00012469,2]
[353726808,1739998262640,-153.0,0.00012469,2]
[353726809,1739998262650,-153.0,0.00012469,2]
[353726811,1739998262659,-153.0,0.00012469,2]
[353726813,1739998262668,-153.0,0.00012469,2]
[353726815,1739998262677,-153.0,0.00012469,2]
[353726817,1739998262686,-153.0,0.00012469,2]
[353726819,1739998262695,-153.0,0.00012469,2]
[353726821,1739998262707,-153.0,0.00012469,2]
[353726823,1739998262715,-153.0,0.00012469,2]
[353726825,1739998262725,-153.0,0.00012469,2]
[353726827,1739998262734,-153.0,0.00012469,2]
[353726829,1739998262744,-153.0,0.00012469,2]
[353726831,1739998262753,-153.0,0.00012469,2]
[353726833,1739998262762,-153.0,0.00012469,2]
[353726835,1739998262772,-153.0,0.00012469,2]
[353726837,1739998262782,-153.0,0.00012469,2]
[353726839,1739998262791,-153.0,0.00012469,2]
[353726841,1739998262800,-153.0,0.00012469,2]
[353726843,1739998262810,-153.0,0.00012469,2]
[353726845,1739998262819,-153.0,0.00012469,2]
[353726847,1739998262828,-153.0,0.00012469,2]
[353726849,1739998262838,-673.38230493,0.00012471,2]
[353726851,1739998262848,-436.78,0.00012474,2]
[353726853,1739998262858,-500.0,0.00012474,2]
[353726855,1739998262868,-500.0,0.00012474,2]
[353726857,1739998262879,-1087.54,0.00012474,2]
[353726859,1739998262892,-527.92,0.00012474,2]
[353726861,1739998262902,-670.45,0.00012474,2]
[353726863,1739998262912,-500.0,0.00012474,2]
[353726865,1739998262921,-500.95,0.00012474,2]
[353726867,1739998262931,-500.0,0.00012474,2]
[353726869,1739998262940,-500.0,0.00012474,2]
[353726871,1739998262953,-535.89,0.00012474,2]
[353726873,1739998262964,-500.0,0.00012474,2]
[353726875,1739998262974,-533.91,0.00012474,2]
[353726877,1739998262983,-555.64,0.00012474,2]
[353726879,1739998262992,-602.23,0.00012474,2]
[353726881,1739998263002,-533.38,0.00012474,2]
[353726883,1739998263011,-500.0,0.00012474,2]
[353726885,1739998263021,-500.0,0.00012474,2]
[353726887,1739998263031,-500.0,0.00012474,2]
[353726889,1739998263042,-500.0,0.00012474,2]
[353726891,1739998263053,-619.13,0.00012474,2]
[353726893,1739998263064,-500.0,0.00012474,2]
[353726895,1739998263075,-500.0,0.00012474,2]
[353726897,1739998263084,-532.92,0.00012474,2]
[353726899,1739998263094,-701.2,0.00012474,2]
[353726901,1739998263104,-500.0,0.00012474,2]
[353726903,1739998263114,-948.34,0.00012474,2]
[353726905,1739998263123,-500.0,0.00012474,2]
[353726907,1739998263133,-500.0,0.00012475,2]
[353726909,1739998263143,-500.0,0.00012475,2]
[353726911,1739998263153,-500.0,0.00012475,2]
[353726913,1739998263163,-500.0,0.00012475,2]
[353726915,1739998263173,-500.0,0.00012475,2]
[353726917,1739998263183,-500.0,0.00012475,2]
[353726919,1739998263194,-500.0,0.00012475,2]
[353726921,1739998263206,-1239.95,0.00012475,2]
[353726923,1739998263216,-500.0,0.00012482,2]
[353726925,1739998263226,-500.0,0.00012556,2]
[353726927,1739998263235,-500.0,0.00012556,2]
[353726929,1739998263245,-1087.54,0.00012556,2]
[353726931,1739998263255,-527.92,0.00012556,2]
[353726933,1739998263265,-670.45,0.00012556,2]
[353726935,1739998263275,-500.0,0.00012556,2]
[353726937,1739998263285,-500.95,0.00012556,2]
[353726939,1739998263295,-500.0,0.00012556,2]
[353726940,1739998263304,-500.0,0.00012556,2]
[353726942,1739998263314,-535.89,0.00012556,2]
[353726944,1739998263323,-500.0,0.00012556,2]
[353726946,1739998263334,-533.91,0.00012556,2]
[353726948,1739998263344,-555.64,0.00012556,2]
[353726950,1739998263354,-602.23,0.00012556,2]
[353726952,1739998263363,-533.38,0.00012556,2]
[353726954,1739998263373,-387.58,0.00012556,2]
[353726956,1739998263382,-500.0,0.00012556,2]
[353726958,1739998263391,-500.0,0.00012556,2]
[353726960,1739998263401,-415.39607747,0.00012556,2]
[353726962,1739998263410,-619.13,0.00012556,2]
[353726964,1739998263419,-500.0,0.00012556,2]
[353726966,1739998263428,-392.21,0.00012556,2]
[353726968,1739998263438,-532.92,0.00012556,2]
[353726970,1739998263450,-701.2,0.00012556,2]
[353726972,1739998263461,-500.0,0.00012556,2]
[353726974,1739998263471,-948.34,0.00012556,2]
[353726976,1739998263481,-500.0,0.00012556,2]
[353726978,1739998263492,-582.92,0.00012558,2]
[353726979,1739998263502,-500.0,0.00012558,2]
[353726981,1739998263511,-500.0,0.00012558,2]
[353726983,1739998263521,-500.0,0.00012558,2]
[353726985,1739998263531,-500.0,0.00012558,2]
[353726987,1739998263542,-321.58,0.00012558,2]
[353726989,1739998263553,-500.0,0.00012558,2]
[353726991,1739998263563,-1239.95,0.00012558,2]
[353726993,1739998263574,-1000.0,0.00012606,2]
[353726995,1739998263585,-500.0,0.00012639,2]
[353726997,1739998263596,-500.0,0.00012639,2]
[353726999,1739998263607,-1087.54,0.00012639,2]
[353727001,1739998263618,-527.92,0.00012639,2]
[353727002,1739998263628,-670.45,0.00012639,2]
[353727003,1739998263638,-500.0,0.00012639,2]
[353727004,1739998263650,-500.95,0.00012639,2]
[353727005,1739998263660,-500.0,0.00012639,2]
[353727006,1739998263670,-500.0,0.00012639,2]
[353727007,1739998263681,-535.89,0.00012639,2]
[353727008,1739998263691,-280.2,0.00012639,2]
[353727009,1739998263705,-533.91,0.00012639,2]
[353727011,1739998263714,-555.64,0.00012639,2]
[353727013,1739998263724,-602.23,0.00012639,2]
[353727015,1739998263738,-533.38,0.00012639,2]
[353727018,1739998263754,-500.0,0.00012639,2]
[353727020,1739998263769,-500.0,0.00012639,2]
[353727022,1739998263782,-619.13,0.00012639,2]
[353727025,1739998263797,-352.49599431,0.00012639,2]
[353727027,1739998263812,-532.92,0.00012639,2]
[353727030,1739998263827,-701.2,0.00012639,2]
[353727032,1739998263841,-500.0,0.00012639,2]
[353727035,1739998263856,-948.34,0.00012639,2]
[353727037,1739998263871,-601.34,0.00012639,2]
[353727039,1739998263886,-571.81,0.0001264,2]
[353727041,1739998263898,-500.0,0.0001264,2]
[353727043,1739998263914,-500.0,0.0001264,2]
[353727046,1739998263929,-500.0,0.0001264,2]
[353727048,1739998263944,-500.0,0.0001264,2]
[353727051,1739998263962,-1239.95,0.0001264,2]
[353727053,1739998263977,-500.0,0.00012656,2]
[353727055,1739998263993,-500.0,0.00012656,2]
[353727058,1739998264007,-219.19,0.00012721,2]
[353727060,1739998264024,-500.0,0.00012721,2]
[353727062,1739998264041,-1087.54,0.00012721,2]
[353727065,1739998264057,-527.92,0.00012721,2]
[353727067,1739998264073,-670.45,0.00012721,2]
[353727070,1739998264089,-500.0,0.00012721,2]
[353727072,1739998264105,-500.95,0.00012721,2]
[353727075,1739998264119,-500.0,0.00012721,2]
[353727077,1739998264133,-500.0,0.00012721,2]
[353727079,1739998264146,-535.89,0.00012721,2]
[353727081,1739998264160,-533.91,0.00012721,2]
[353727084,1739998264174,-555.64,0.00012721,2]
[353727086,1739998264192,-602.23,0.00012721,2]
[353727088,1739998264206,-533.38,0.00012721,2]
[353727090,1739998264217,-500.0,0.00012721,2]
[353727093,1739998264228,-489.59,0.00012721,2]
[353727095,1739998264243,-619.13,0.00012721,2]
[353727097,1739998264259,-532.92,0.00012721,2]
[353727100,1739998264271,-701.2,0.00012721,2]
[353727102,1739998264283,-500.0,0.00012721,2]
[353727104,1739998264296,-948.34,0.00012721,2]
[353727106,1739998264308,-500.0,0.00012722,2]
[353727108,1739998264320,-551.11,0.00012722,2]
[353727111,1739998264332,-500.0,0.00012722,2]
[353727113,1739998264344,-500.0,0.00012722,2]
[353727115,1739998264357,-1239.95,0.00012722,2]
[353727117,1739998264369,-673.38230493,0.00012753,2]
[353727120,1739998264383,-1000.0,0.0001278,2]
[353727122,1739998264395,-533.55,0.0001278,2]
[353727124,1739998264408,-696.265,0.00012793,2]
[353727126,1739998264420,-1424.0,0.00012793,2]
[353727129,1739998264432,-783.0,0.00012793,2]
[353727131,1739998264445,-539.0,0.00012793,2]
[353727133,1739998264459,-4029.0,0.00012793,2]
[353727136,1739998264471,-150.0,0.00012793,2]
[353727138,1739998264484,-157.444,0.00012793,2]
[353727140,1739998264496,-3918.0,0.00012793,2]
[353727142,1739998264508,-1071.598,0.00012793,2]
[353727144,1739998264520,-500.0,0.00012803,2]
[353727147,1739998264533,-1087.54,0.00012803,2]
[353727149,1739998264546,-527.92,0.00012803,2]
[353727151,1739998264560,-670.45,0.00012803,2]
[353727153,1739998264571,-283.79,0.00012803,2]
[353727156,1739998264584,-500.95,0.00012803,2]
[353727158,1739998264596,-500.0,0.00012803,2]
[353727160,1739998264608,-500.0,0.00012803,2]
[353727162,1739998264620,-535.89,0.00012803,2]
[353727164,1739998264632,-533.91,0.00012803,2]
[353727167,1739998264644,-555.64,0.00012803,2]
[353727169,1739998264656,-602.23,0.00012803,2]
[353727171,1739998264668,-533.38,0.00012803,2]
[353727173,1739998264681,-500.0,0.00012803,2]
[353727176,1739998264692,-619.13,0.00012803,2]
[353727178,1739998264706,-532.92,0.00012803,2]
[353727180,1739998264717,-701.2,0.00012803,2]
[353727182,1739998264729,-210.03,0.00012803,2]
[353727185,1739998264741,-948.34,0.00012803,2]
[353727187,1739998264753,-500.0,0.00012804,2]
[353727189,1739998264766,-500.0,0.00012804,2]
[353727191,1739998264778,-521.07285294,0.00012804,2]
[353727193,1739998264789,-1239.95,0.00012804,2]
[353727196,1739998264801,-1494.69,0.00012808,2]
[353727198,1739998264812,-1060.0,0.00012848,2]
[353727200,1739998264823,-747.48,0.00012874,2]
[353727202,1739998264835,-1200.0,0.00012876,2]
[353727204,1739998264847,-167.9197726,0.00012877,2]
[353727207,1739998264859,-181.53459671,0.00012877,2]
[353727209,1739998264871,-181.5345967,0.00012877,2]
[353727211,1739998264884,-181.5345967,0.00012877,2]
[353727213,1739998264899,-319.85,0.00012885,2]
[353727216,1739998264910,-1087.54,0.00012885,2]
[353727218,1739998264923,-527.92,0.00012885,2]
[353727220,1739998264935,-670.45,0.00012885,2]
[353727222,1739998264947,-500.95,0.00012885,2]
[353727225,1739998264962,-338.41,0.00012885,2]
[353727227,1739998264974,-500.0,0.00012885,2]
[353727229,1739998264986,-535.89,0.00012885,2]
[353727231,1739998264998,-533.91,0.00012885,2]
[353727233,1739998265008,-555.64,0.00012885,2]
[353727235,1739998265020,-602.23,0.00012885,2]
[353727238,1739998265031,-533.38,0.00012885,2]
[353727240,1739998265044,-220.08,0.00012885,2]
[353727242,1739998265056,-619.13,0.00012885,2]
[353727244,1739998265077,-532.92,0.00012885,2]
[353727246,1739998265089,-701.2,0.00012885,2]
[353727249,1739998265101,-948.34,0.00012885,2]
[353727251,1739998265113,-262.06,0.00012886,2]
[353727253,1739998265125,-418.75,0.00012886,2]
[353727255,1739998265137,-1239.95,0.00012886,2]
[353727257,1739998265149,-367.0,0.000129,2]
[353727260,1739998265160,-167.9197726,0.00012932,2]
[353727262,1739998265172,-181.5345967,0.00012932,2]
[353727264,1739998265184,-2665.559,0.00012959,2]
[353727266,1739998265195,-1087.54,0.00012967,2]
[353727268,1739998265209,-527.92,0.00012967,2]
[353727271,1739998265222,-670.45,0.00012967,2]
[353727273,1739998265233,-500.95,0.00012967,2]
[353727275,1739998265245,-500.0,0.00012967,2]
[353727277,1739998265256,-535.89,0.00012967,2]
[353727280,1739998265269,-533.91,0.00012967,2]
[353727282,1739998265280,-555.64,0.00012967,2]
[353727284,1739998265292,-602.23,0.00012967,2]
[353727286,1739998265304,-533.38,0.00012967,2]
[353727288,1739998265315,-619.13,0.00012967,2]